bitfinex/quotes_BTCUSD_20240731
["timestamp","ask_amount","ask_price","bid_price","bid_amount"]
[1722441368878,1.62754202,66552.0,66551.0,0.000913]
[1722441369278,1.61754202,66552.0,66551.0,0.000913]
[1722441369905,1.60354202,66552.0,66551.0,0.000913]
[1722441370429,1.59954202,66552.0,66551.0,0.000913]
[1722441370656,1.61354202,66552.0,66551.0,0.000913]
[1722441371082,1.60347811,66552.0,66551.0,0.000913]
[1722441372283,1.61747811,66552.0,66551.0,0.000913]
[1722441373559,1.59389701,66552.0,66551.0,0.000913]
[1722441374121,1.57431276,66552.0,66551.0,0.000913]
[1722441374274,1.60401997,66552.0,66551.0,0.000913]
[1722441374834,1.081837,66550.0,66549.0,0.009295]
[1722441375010,1.50206921,66550.0,66549.0,0.00779323]
[1722441375170,1.57766921,66550.0,66549.0,0.00779323]
[1722441375375,1.87819421,66550.0,66549.0,0.00779323]
[1722441375579,1.94139421,66550.0,66549.0,0.00779323]
[1722441375792,2.09087551,66550.0,66549.0,0.00779323]
[1722441375987,1.79035051,66550.0,66549.0,0.00779323]
[1722441376426,1.79035051,66550.0,66548.0,0.009295]
[1722441376427,1.382385,66549.0,66548.0,0.009295]
[1722441376653,0.522829,66544.0,66532.0,0.151606]
[1722441376791,1.17007051,66544.0,66532.0,0.151606]
[1722441376989,1.77117651,66544.0,66532.0,0.151606]
[1722441377218,1.7514693,66544.0,66532.0,0.151606]
[1722441377425,1.77088047,66544.0,66532.0,0.151606]
[1722441377618,1.7714693,66544.0,66532.0,0.151606]
[1722441377815,1.7908823,66544.0,66532.0,0.151606]
[1722441378333,1.80905499,66544.0,66532.0,0.151606]
[1722441378536,1.7854693,66544.0,66532.0,0.151606]
[1722441378833,1.7554693,66544.0,66532.0,0.151606]
[1722441379035,1.78499383,66544.0,66532.0,0.151606]
[1722441379302,1.7554693,66544.0,66532.0,0.151606]
[1722441379435,1.78844843,66544.0,66532.0,0.151606]
[1722441379992,1.64894843,66544.0,66532.0,0.151606]
[1722441380154,1.0288633,66544.0,66543.0,0.092295]
[1722441380356,0.50688368,66544.0,66543.0,0.155495]
[1722441380676,0.48797006,66544.0,66543.0,0.155495]
[1722441380879,0.78852306,66544.0,66543.0,0.155495]
[1722441381447,0.81210642,66544.0,66543.0,0.155495]
[1722441381670,0.95549624,66544.0,66543.0,0.155495]
[1722441382883,0.93191288,66544.0,66543.0,0.155495]
[1722441386045,0.95549622,66544.0,66543.0,0.155495]
[1722441386249,0.5115534,66544.0,66543.0,0.155495]
[1722441386429,0.05158334,66544.0,66543.0,0.155495]
[1722441386645,0.05158334,66544.0,66543.0,0.31752151]
[1722441386843,0.05158334,66544.0,66543.0,0.16724351]
[1722441386844,0.028,66544.0,66543.0,0.16724351]
[1722441387387,0.014,66544.0,66543.0,0.16724351]
[1722441387587,0.00908254,66545.0,66543.0,0.17132151]
[1722441387810,0.00908254,66545.0,66544.0,0.1425]
[1722441388004,0.300542,66547.0,66545.0,0.0592]
[1722441388005,0.15027,66547.0,66545.0,0.0592]
[1722441388211,0.1,66548.0,66546.0,0.0761]
[1722441388423,0.150269,66547.0,66546.0,0.08784046]
[1722441388964,0.55183022,66547.0,66546.0,0.08784046]
[1722441389203,0.25129122,66547.0,66546.0,0.08784046]
[1722441389796,0.150269,66547.0,66546.0,0.08784046]
[1722441390019,0.02358189,66547.0,66546.0,0.23811146]
[1722441390178,0.15867442,66547.0,66546.0,0.53865446]
[1722441390378,0.013,66547.0,66546.0,0.23811146]
[1722441390582,0.013,66547.0,66546.0,0.08784046]
[1722441390787,0.013,66547.0,66546.0,0.23811146]
[1722441390990,0.013,66547.0,66546.0,0.30421146]
[1722441391310,0.16467442,66547.0,66546.0,0.15394046]
[1722441391889,0.163269,66547.0,66546.0,0.15394046]
[1722441392097,0.463808,66547.0,66546.0,0.15394046]
[1722441392297,0.764347,66547.0,66546.0,0.01174046]
[1722441392499,0.450829,66544.0,66543.0,0.075395]
[1722441393148,0.47441138,66544.0,66543.0,0.08712015]
[1722441393319,0.450829,66544.0,66543.0,0.08712015]
[1722441393524,0.53816249,66544.0,66543.0,0.08712015]
[1722441394061,0.54116249,66544.0,66543.0,0.08712015]
[1722441394211,0.003,66544.0,66543.0,0.08712015]
[1722441394409,0.003,66544.0,66543.0,0.16792015]
[1722441394410,0.1546605,66544.0,66543.0,0.16792015]
[1722441394635,0.15466052,66544.0,66543.0,0.16792015]
[1722441394835,0.003,66544.0,66543.0,0.16792015]
[1722441395217,0.153276,66544.0,66543.0,0.16792015]
[1722441395442,0.156276,66544.0,66543.0,0.16792015]
[1722441395640,0.30793652,66544.0,66543.0,0.16792015]
[1722441395906,0.30793697,66544.0,66543.0,0.16792015]
[1722441396118,0.33151939,66544.0,66543.0,0.16792015]
[1722441396702,0.3285178,66544.0,66543.0,0.16792015]
[1722441396904,0.1782418,66544.0,66543.0,0.31819815]
[1722441397043,0.1782418,66544.0,66543.0,0.61875515]
[1722441397044,0.02658242,66544.0,66543.0,0.61875515]
[1722441397252,0.02658242,66544.0,66543.0,0.91931215]
[1722441398415,0.02658242,66544.0,66543.0,0.61875515]
[1722441399106,0.03158242,66544.0,66543.0,0.61875515]
[1722441399512,0.18333401,66544.0,66543.0,0.61875515]
[1722441400544,0.2225907,66544.0,66543.0,0.16792015]
[1722441400746,0.52166811,66544.0,66543.0,0.16792015]
[1722441400914,0.52466811,66544.0,66543.0,0.16792015]
[1722441401126,0.52466811,66544.0,66543.0,0.08712015]
[1722441401319,0.82522111,66544.0,66543.0,0.009295]
[1722441401460,1.12577411,66544.0,66543.0,0.009295]
[1722441401662,1.11977411,66544.0,66543.0,0.009295]
[1722441401869,1.12477411,66544.0,66543.0,0.009295]
[1722441402077,1.13077411,66544.0,66543.0,0.009295]
[1722441402274,1.12477411,66544.0,66543.0,0.009295]
[1722441402481,1.11977411,66544.0,66543.0,0.009295]
[1722441402682,1.12877411,66544.0,66543.0,0.009295]
[1722441403096,1.10519169,66544.0,66543.0,0.009295]
[1722441403296,1.11583357,66544.0,66543.0,0.009295]
[1722441403494,1.11556198,66544.0,66543.0,0.009295]
[1722441403768,1.12356198,66544.0,66543.0,0.009295]
[1722441403957,1.11556198,66544.0,66543.0,0.009295]
[1722441404310,1.34886638,66544.0,66543.0,0.009295]
[1722441405042,1.12019169,66544.0,66543.0,0.009295]
[1722441405240,1.139644,66544.0,66543.0,0.009295]
[1722441405587,1.12019169,66544.0,66543.0,0.009295]
[1722441406242,1.14377508,66544.0,66543.0,0.009295]
[1722441406562,1.16338103,66544.0,66543.0,0.009295]
[1722441406702,1.14377508,66544.0,66543.0,0.009295]
[1722441407323,1.16341714,66544.0,66543.0,0.009295]
[1722441407532,0.06722545,66544.0,66543.0,0.152095]
[1722441407756,0.04758339,66544.0,66543.0,0.16400296]
[1722441408016,0.04758339,66544.0,66543.0,0.31428096]
[1722441408017,0.024,66544.0,66543.0,0.31428096]
[1722441408223,0.024,66544.0,66543.0,0.16400296]
[1722441408447,0.012,66544.0,66543.0,0.16400296]
[1722441408661,0.150274,66545.0,66543.0,0.16400296]
[1722441408890,0.012,66544.0,66543.0,0.16400296]
[1722441409486,0.150273,66546.0,66543.0,0.16400296]
[1722441409686,0.150273,66546.0,66543.0,0.31428096]
[1722441409905,0.015,66544.0,66543.0,0.31428096]
[1722441410105,0.003,66544.0,66543.0,0.31428096]
[1722441410305,0.003,66544.0,66543.0,0.16400296]
[1722441410467,0.006,66544.0,66543.0,0.31428096]
[1722441410667,0.006,66544.0,66543.0,0.61483796]
[1722441411054,0.006,66544.0,66543.0,0.91539496]
[1722441411205,0.02958236,66544.0,66543.0,0.61483796]
[1722441411588,0.006,66544.0,66543.0,0.91539496]
[1722441411783,0.003,66544.0,66543.0,0.91539496]
[1722441413024,0.003,66544.0,66543.0,0.61483796]
[1722441414750,0.02658183,66544.0,66543.0,0.61483796]
[1722441415393,0.02958183,66544.0,66543.0,0.61483796]
[1722441415801,0.0585462,66544.0,66543.0,0.16400296]
[1722441416003,0.5093752,66544.0,66543.0,0.16400296]
[1722441416207,0.5093752,66544.0,66543.0,0.02120296]
[1722441416208,0.8099282,66544.0,66543.0,0.02120296]
[1722441416570,0.8099282,66544.0,66543.0,0.009295]
[1722441416775,0.8099282,66544.0,66543.0,0.02119621]
[1722441416985,0.8099282,66544.0,66543.0,0.009295]
[1722441417188,0.8099282,66544.0,66543.0,0.02119621]
[1722441417386,0.8099282,66544.0,66543.0,0.009295]
[1722441417588,0.8099282,66544.0,66543.0,0.02119621]
[1722441418189,0.8099282,66544.0,66543.0,0.009295]
[1722441418385,0.82847916,66544.0,66543.0,0.009295]
[1722441418625,1.12903283,66544.0,66543.0,0.009295]
[1722441418953,1.105451,66544.0,66543.0,0.009295]
[1722441421812,1.11048274,66544.0,66543.0,0.009295]
[1722441422007,1.10424881,66544.0,66543.0,0.009295]
[1722441423262,1.32583206,66544.0,66543.0,0.009295]
[1722441425281,1.32594969,66544.0,66543.0,0.009295]
[1722441425450,1.34953306,66544.0,66543.0,0.009295]
[1722441426528,1.10425759,66544.0,66543.0,0.009295]
[1722441428289,1.08689937,66544.0,66543.0,0.009295]
[1722441428489,1.30864275,66544.0,66543.0,0.009295]
[1722441428695,1.32556374,66544.0,66543.0,0.009295]
[1722441429706,1.34914711,66544.0,66543.0,0.009295]
[1722441430254,1.32556374,66544.0,66543.0,0.009295]
[1722441431654,1.08689937,66544.0,66543.0,0.009295]
[1722441431884,1.32553678,66544.0,66543.0,0.009295]
[1722441433363,1.34912015,66544.0,66543.0,0.009295]
[1722441433532,1.32553678,66544.0,66543.0,0.009295]
[1722441433746,1.10381136,66544.0,66543.0,0.009295]
[1722441434371,1.32553965,66544.0,66543.0,0.009295]
[1722441434905,1.08689937,66544.0,66543.0,0.009295]
[1722441435120,1.32548183,66544.0,66543.0,0.009295]
[1722441435716,1.18985794,66544.0,66543.0,0.009295]
[1722441436361,1.21344131,66544.0,66543.0,0.009295]
[1722441438332,1.21319388,66544.0,66543.0,0.009295]
[1722441438677,1.57865111,66544.0,66543.0,0.009295]
[1722441438886,1.66125111,66544.0,66543.0,0.009295]
[1722441439688,1.73466774,66544.0,66543.0,0.009295]
[1722441439991,1.74166774,66544.0,66543.0,0.009295]
[1722441440191,1.75566774,66544.0,66543.0,0.009295]
[1722441440372,1.73905237,66544.0,66543.0,0.009295]
[1722441440568,1.75528838,66544.0,66543.0,0.009295]
[1722441441022,1.75528838,66544.0,66543.0,1e-08]
[1722441441136,2.07584138,66544.0,66543.0,1e-08]
[1722441441343,1.201793,66534.0,66533.0,1e-08]
[1722441441549,1.201793,66534.0,66525.0,0.009306]
[1722441441550,0.450951,66526.0,66525.0,0.009306]
[1722441441753,1.69494321,66526.0,66525.0,0.009306]
[1722441442668,1.73253413,66526.0,66525.0,0.009306]
[1722441442872,1.74253413,66526.0,66525.0,0.009306]
[1722441443073,1.85504078,66526.0,66525.0,0.009306]
[1722441443220,2.08444078,66526.0,66525.0,0.009306]
[1722441443821,2.03394536,66526.0,66525.0,0.009306]
[1722441444428,2.04794536,66526.0,66525.0,0.009306]
[1722441444762,1.9854343,66526.0,66525.0,0.009306]
[1722441444969,1.97603838,66526.0,66525.0,0.009306]
[1722441445362,1.78863838,66526.0,66525.0,0.009306]
[1722441445726,1.49759638,66526.0,66525.0,0.009306]
[1722441446389,1.71864268,66526.0,66525.0,0.009306]
[1722441446576,1.73264268,66526.0,66525.0,0.009306]
[1722441446774,1.49759638,66526.0,66525.0,0.009306]
[1722441447359,1.71864268,66526.0,66525.0,0.009306]
[1722441447549,1.49759638,66526.0,66525.0,0.009306]
[1722441447751,1.72864268,66526.0,66525.0,0.009306]
[1722441447978,1.50831391,66526.0,66525.0,0.009306]
[1722441448182,1.80398199,66526.0,66525.0,0.009306]
[1722441448383,1.52134799,66526.0,66525.0,0.009306]
[1722441449437,1.59611211,66526.0,66525.0,0.009306]
[1722441450154,1.57252011,66526.0,66525.0,0.009306]
[1722441451223,1.57171407,66526.0,66525.0,0.009306]
[1722441451748,1.57171407,66526.0,66525.0,0.0208081]
[1722441453229,1.65557689,66526.0,66525.0,0.0208081]
[1722441453476,1.63198507,66526.0,66525.0,0.0208081]
[1722441453879,1.6134695,66526.0,66525.0,0.0208081]
[1722441455897,1.6134695,66526.0,66508.0,0.009306]
[1722441455898,1.061595,66525.0,66524.0,6.10499536]
[1722441456123,1.6903143,66525.0,66524.0,6.10499536]
[1722441456328,1.9909523,66525.0,66524.0,6.10499536]
[1722441456752,2.01454497,66525.0,66524.0,6.10499536]
[1722441456954,2.03454497,66525.0,66524.0,6.10499536]
[1722441457395,2.14544039,66525.0,66524.0,6.10499536]
[1722441457837,2.14544039,66525.0,66524.0,6.08299536]
[1722441458007,2.19166124,66525.0,66524.0,6.03299536]
[1722441458412,2.20566124,66525.0,66524.0,5.96678636]
[1722441458620,2.20566124,66525.0,66524.0,5.87621636]
[1722441458621,2.18206857,66525.0,66524.0,5.87621636]
[1722441458827,2.49670657,66525.0,66524.0,5.72953383]
[1722441459383,2.49670657,66525.0,66524.0,5.53940383]
[1722441459582,2.46870657,66525.0,66524.0,5.38482383]
[1722441459781,2.50570657,66525.0,66524.0,5.38482383]
[1722441459981,2.51970657,66525.0,66524.0,5.38482383]
[1722441460183,2.51970657,66525.0,66524.0,5.27812183]
[1722441460368,2.5370896,66525.0,66524.0,5.20683383]
[1722441460773,2.53708933,66525.0,66524.0,5.20683383]
[1722441461017,2.53708933,66525.0,66524.0,4.88293683]
[1722441461336,2.52308933,66525.0,66524.0,4.83771117]
[1722441461517,2.50908933,66525.0,66524.0,4.83771117]
[1722441461736,2.54668455,66525.0,66524.0,4.83771117]
[1722441461934,2.52308933,66525.0,66524.0,4.80297117]
[1722441462134,2.53708933,66525.0,66524.0,4.76466117]
[1722441463438,2.53708933,66525.0,66524.0,4.7743106]
[1722441464003,2.54329637,66525.0,66524.0,4.24645405]
[1722441464139,2.56070067,66525.0,66524.0,4.09662767]
[1722441464347,2.56070067,66525.0,66524.0,4.04856367]
[1722441464933,3.11458367,66525.0,66524.0,2.63898505]
[1722441465079,3.53683867,66525.0,66524.0,2.57614967]
[1722441465280,3.53683867,66525.0,66524.0,2.42206925]
[1722441465492,3.53683867,66525.0,66524.0,2.35624487]
[1722441465698,3.52283867,66525.0,66524.0,2.23000487]
[1722441465876,3.52283867,66525.0,66524.0,2.18794087]
[1722441466079,3.52283867,66525.0,66524.0,2.06768487]
[1722441466265,3.23620067,66525.0,66524.0,2.02245477]
[1722441466468,3.45160067,66525.0,66524.0,2.02245477]
[1722441466687,3.60242015,66525.0,66524.0,1.97722467]
[1722441466890,3.45160067,66525.0,66524.0,1.87850267]
[1722441467248,3.45122631,66525.0,66524.0,1.77314457]
[1722441467852,3.45122631,66525.0,66524.0,1.74056957]
[1722441468010,3.45122631,66525.0,66524.0,1.59024957]
[1722441468337,3.45122631,66525.0,66524.0,1.54501947]
[1722441468577,3.23582631,66525.0,66524.0,1.52823847]
[1722441468777,3.39500546,66525.0,66524.0,1.52823847]
[1722441469074,3.40500546,66525.0,66524.0,1.50935647]
[1722441469287,3.40500546,66525.0,66524.0,1.49042047]
[1722441469681,3.40500546,66525.0,66524.0,1.47242047]
[1722441470831,3.40500546,66525.0,66524.0,1.45336647]
[1722441471459,3.40500546,66525.0,66524.0,1.43431247]
[1722441472123,3.40500546,66525.0,66524.0,1.42474547]
[1722441472447,3.40500546,66525.0,66524.0,1.38235863]
[1722441472619,3.40500546,66525.0,66524.0,1.34853863]
[1722441472970,3.40500546,66525.0,66524.0,1.33893463]
[1722441473176,3.40500546,66525.0,66524.0,1.28954996]
[1722441473379,3.40500546,66525.0,66524.0,1.23931699]
[1722441473581,3.39557232,66525.0,66524.0,1.22574642]
[1722441473786,3.40557232,66525.0,66524.0,1.22574642]
[1722441474192,3.39557232,66525.0,66524.0,1.22574642]
[1722441474393,3.40557232,66525.0,66524.0,1.22574642]
[1722441475833,2.0795389,66525.0,66524.0,1.22574642]
[1722441476036,2.2100576,66525.0,66524.0,1.22574642]
[1722441476270,2.02660307,66525.0,66524.0,1.21609699]
[1722441476471,0.778957,66525.0,66524.0,1.21609699]
[1722441476652,0.778957,66525.0,66524.0,1.30632009]
[1722441476853,1.16542121,66525.0,66524.0,1.30632009]
[1722441477107,1.27721887,66525.0,66524.0,1.30632009]
[1722441477305,1.16542121,66525.0,66524.0,1.30632009]
[1722441477682,1.46605921,66525.0,66524.0,1.30632009]
[1722441477934,1.46205921,66525.0,66524.0,1.23245298]
[1722441478135,1.56805921,66525.0,66524.0,1.15195298]
[1722441478356,2.09809721,66525.0,66524.0,1.10173328]
[1722441478541,2.09809721,66525.0,66524.0,0.96172724]
[1722441478738,2.08409721,66525.0,66524.0,0.96172724]
[1722441478945,2.1076912,66525.0,66524.0,0.96172724]
[1722441479143,2.1216912,66525.0,66524.0,0.96172724]
[1722441479280,2.1356912,66525.0,66524.0,0.96172724]
[1722441479482,2.15219464,66525.0,66524.0,0.96172724]
[1722441479964,2.1356912,66525.0,66524.0,0.96172724]
[1722441480165,2.1521893,66525.0,66524.0,0.96172724]
[1722441480749,2.1521893,66525.0,66524.0,0.91136824]
[1722441480750,2.1356912,66525.0,66524.0,0.91136824]
[1722441480946,2.15226401,66525.0,66524.0,0.89629301]
[1722441481145,2.1496912,66525.0,66524.0,0.89629301]
[1722441481325,2.1296912,66525.0,66524.0,0.89629301]
[1722441481527,1.9142912,66525.0,66524.0,0.89629301]
[1722441482602,1.51846499,66525.0,66524.0,1.04009301]
[1722441482879,1.52846499,66525.0,66524.0,1.04009301]
[1722441483253,0.91718899,66525.0,66524.0,1.04009301]
[1722441484094,1.21782699,66525.0,66524.0,1.04009301]
[1722441484312,1.36730829,66525.0,66524.0,1.03036991]
[1722441484890,1.36730829,66525.0,66524.0,1.0400955]
[1722441485291,1.06667029,66525.0,66524.0,1.0400955]
[1722441486168,1.36730829,66525.0,66524.0,1.03036991]
[1722441486409,1.36730829,66525.0,66524.0,1.04009252]
[1722441487123,1.06667029,66525.0,66524.0,1.04009252]
[1722441487538,1.36730829,66525.0,66524.0,1.04009252]
[1722441487742,1.51872561,66525.0,66524.0,1.04009252]
[1722441487952,1.36730829,66525.0,66524.0,1.03036991]
[1722441488356,1.36730829,66525.0,66524.0,1.04008663]
[1722441488500,1.39312225,66525.0,66524.0,0.89628663]
[1722441488707,1.60852225,66525.0,66524.0,0.89628663]
[1722441489104,1.60852225,66525.0,66524.0,0.88656991]
[1722441489297,1.59270829,66525.0,66524.0,0.88656991]
[1722441489502,1.39328218,66525.0,66524.0,0.89628663]
[1722441489953,1.69392018,66525.0,66524.0,0.89628663]
[1722441490153,1.39328218,66525.0,66524.0,0.89628663]
[1722441490628,1.67032619,66525.0,66524.0,0.89628663]
[1722441490824,1.36968819,66525.0,66524.0,0.89628663]
[1722441491025,1.35968819,66525.0,66524.0,0.89628663]
[1722441491437,1.35968819,66525.0,66524.0,0.97228663]
[1722441492329,1.05905019,66525.0,66524.0,1.03748663]
[1722441492529,1.05979922,66525.0,66524.0,1.03748663]
[1722441492990,1.05979922,66525.0,66524.0,1.02776991]
[1722441493344,1.05979922,66525.0,66524.0,1.03749003]
[1722441493746,1.08339193,66525.0,66524.0,1.03749003]
[1722441495758,1.38328657,66525.0,66524.0,0.96149003]
[1722441495960,1.38328657,66525.0,66524.0,0.89629003]
[1722441496168,1.59868657,66525.0,66524.0,0.89629003]
[1722441496350,1.38328657,66525.0,66524.0,0.89629003]
[1722441499459,1.38322048,66525.0,66524.0,0.89629003]
[1722441500568,1.36730701,66525.0,66524.0,0.89629003]
[1722441500755,1.38301835,66525.0,66524.0,0.89629003]
[1722441501155,1.35942564,66525.0,66524.0,0.89629003]
[1722441502483,1.3437143,66525.0,66524.0,0.89629003]
[1722441502685,1.35939861,66525.0,66524.0,0.89629003]
[1722441503446,1.05876061,66525.0,66524.0,1.03569003]
[1722441504714,1.08235341,66525.0,66524.0,1.03569003]
[1722441505808,1.08241861,66525.0,66524.0,1.03569003]
[1722441506406,1.38305661,66525.0,66524.0,1.03569003]
[1722441507565,1.08241861,66525.0,66524.0,1.03569003]
[1722441508273,0.08134231,66525.0,66524.0,1.48665403]
[1722441508478,0.05774951,66525.0,66524.0,1.48665403]
[1722441508653,0.042,66525.0,66524.0,1.18601103]
[1722441508858,0.042,66525.0,66524.0,1.78729703]
[1722441509066,0.014,66525.0,66524.0,1.48665403]
[1722441509419,0.014,66525.0,66524.0,1.78729703]
[1722441509624,0.1486812,66525.0,66524.0,1.78729703]
[1722441509823,0.1486812,66525.0,66524.0,1.48665403]
[1722441510215,0.1616812,66525.0,66524.0,1.78729703]
[1722441510501,0.1476812,66525.0,66524.0,1.78729703]
[1722441510651,0.02783,66525.0,66524.0,1.78729703]
[1722441511259,0.1485112,66525.0,66524.0,1.78729703]
[1722441511462,0.00083,66525.0,66524.0,1.78729703]
[1722441512520,0.00083,66525.0,66524.0,1.78829703]
[1722441513541,0.00083,66525.0,66524.0,1.48765403]
[1722441513988,0.01437764,66525.0,66524.0,1.48765403]
[1722441515566,0.14899667,66525.0,66524.0,1.03669003]
[1722441515784,0.00083,66525.0,66524.0,1.03669003]
[1722441516161,0.15227641,66525.0,66524.0,1.03669003]
[1722441516475,0.00083,66525.0,66524.0,1.03669003]
[1722441516882,0.00583,66525.0,66524.0,1.03669003]
[1722441517045,0.00583,66525.0,66524.0,1.18701103]
[1722441517241,0.00083,66525.0,66524.0,1.78829703]
[1722441517491,0.1354476,66525.0,66524.0,1.78829703]
[1722441517712,0.1434476,66525.0,66524.0,1.78829703]
[1722441518033,0.00883,66525.0,66524.0,1.78829703]
[1722441518235,0.1354476,66525.0,66524.0,1.78829703]
[1722441518534,0.00083,66525.0,66524.0,1.78729703]
[1722441518741,0.00783,66525.0,66524.0,2.08794003]
[1722441518905,0.00083,66525.0,66524.0,2.08794003]
[1722441519242,0.00383,66525.0,66524.0,2.08794003]
[1722441519439,0.00083,66525.0,66524.0,2.08794003]
[1722441519782,0.02441793,66525.0,66524.0,2.08794003]
[1722441520188,0.02941793,66525.0,66524.0,2.08794003]
[1722441520746,0.02441793,66525.0,66524.0,2.08794003]
[1722441520889,0.00083,66525.0,66524.0,2.08794003]
[1722441521988,0.00083,66525.0,66524.0,2.08894003]
[1722441522199,0.00083,66525.0,66524.0,2.08794003]
[1722441522620,0.00183,66525.0,66524.0,2.08894003]
[1722441523686,0.00283,66525.0,66524.0,2.08994003]
[1722441523919,0.02641793,66525.0,66524.0,2.08994003]
[1722441524321,0.00283,66525.0,66524.0,2.08994003]
[1722441527029,0.02641784,66525.0,66524.0,2.08994003]
[1722441532420,0.02641784,66525.0,66524.0,1.78929703]
[1722441535317,0.02641784,66525.0,66524.0,2.08994003]
[1722441537344,0.00283,66525.0,66524.0,2.08994003]
[1722441538867,0.00283,66525.0,66524.0,1.78929703]
[1722441539972,0.00283,66525.0,66524.0,2.08994003]
[1722441540559,0.0700726,66525.0,66524.0,2.08994003]
[1722441540763,0.0700726,66525.0,66524.0,2.39058303]
[1722441541081,0.00283,66525.0,66524.0,2.57513475]
[1722441541499,0.00283,66525.0,66524.0,2.26249175]
[1722441541934,0.00283,66525.0,66524.0,1.78929703]
[1722441541935,0.07124368,66525.0,66524.0,1.78929703]
[1722441542173,0.0924928,66525.0,66524.0,1.78929703]
[1722441542410,0.0043842,66525.0,66524.0,1.78929703]
[1722441542651,0.00283,66525.0,66524.0,1.48865403]
[1722441542915,0.00283,66525.0,66524.0,1.04861103]
[1722441543148,0.00183,66525.0,66524.0,1.04761103]
[1722441543688,0.1589128,66525.0,66524.0,1.04761103]
[1722441543952,0.13532421,66525.0,66524.0,1.34925403]
[1722441544418,0.00083,66525.0,66524.0,1.34725403]
[1722441544692,0.00183,66525.0,66524.0,1.34725403]
[1722441546494,0.00183,66525.0,66524.0,1.04661103]
[1722441546732,0.00183,66525.0,66524.0,1.34725403]
[1722441547211,0.02441854,66525.0,66524.0,1.34725403]
[1722441547493,0.02441854,66525.0,66524.0,1.04661103]
[1722441547735,0.02441854,66525.0,66524.0,0.89729003]
[1722441547980,0.05718149,66525.0,66524.0,0.89729003]
[1722441548217,0.00083,66525.0,66524.0,0.89729003]
[1722441548979,0.1527032,66525.0,66524.0,0.89729003]
[1722441549223,0.4533412,66525.0,66524.0,0.89729003]
[1722441549703,0.4563412,66525.0,66524.0,0.89729003]
[1722441549941,0.54669722,66525.0,66524.0,0.89629003]
[1722441550184,0.54569722,66525.0,66524.0,0.88656991]
[1722441550422,0.54569722,66525.0,66524.0,0.89645267]
[1722441550423,0.84433522,66525.0,66524.0,0.89645267]
[1722441550666,0.85233522,66525.0,66524.0,0.89645267]
[1722441550916,0.85778102,66525.0,66524.0,0.89645267]
[1722441551163,0.87177666,66525.0,66524.0,0.89645267]
[1722441551706,1.0339137,66525.0,66524.0,0.88656991]
[1722441551999,1.01032246,66525.0,66524.0,0.88656991]
[1722441552273,1.31096046,66525.0,66524.0,0.89650803]
[1722441552559,1.31096046,66525.0,66524.0,0.88656991]
[1722441552786,1.01032246,66525.0,66524.0,0.89650803]
[1722441553041,1.31096046,66525.0,66524.0,0.89650803]
[1722441553263,1.14090519,66525.0,66524.0,0.88656991]
[1722441553497,0.91996587,66525.0,66524.0,0.88656991]
[1722441553740,0.01583,66525.0,66524.0,0.89652151]
[1722441553983,0.01583,66525.0,66524.0,0.88656991]
[1722441554228,0.01583,66525.0,66524.0,1.04684258]
[1722441554469,0.01583,66525.0,66524.0,0.89652158]
[1722441554748,0.1977952,66525.0,66524.0,0.89652158]
[1722441555239,0.3005851,66525.0,66524.0,0.89652158]
[1722441555485,0.5776332,66525.0,66524.0,0.89652158]
[1722441555725,0.2769952,66525.0,66524.0,0.89652158]
[1722441556703,0.01583,66525.0,66524.0,0.89652158]
[1722441556954,0.01583,66525.0,66524.0,0.97332158]
[1722441557198,0.01583,66525.0,66524.0,1.18784258]
[1722441557440,0.01583,66525.0,66524.0,1.03752158]
[1722441558704,0.0394199,66525.0,66524.0,1.03752158]
[1722441559964,0.05927833,66525.0,66524.0,0.89652158]
[1722441560456,0.20959733,66525.0,66524.0,0.89652158]
[1722441560700,0.4903769,66525.0,66524.0,0.89652158]
[1722441560940,0.1897389,66525.0,66524.0,0.89652158]
[1722441561470,0.4903769,66525.0,66524.0,0.89652158]
[1722441561707,0.79192198,66525.0,66524.0,0.89652158]
[1722441561941,0.7910149,66525.0,66524.0,0.88656991]
[1722441562409,0.7910149,66525.0,66524.0,0.89651633]
[1722441563404,1.23844953,66525.0,66524.0,0.89651633]
[1722441564517,1.0916529,66525.0,66524.0,0.89651633]
[1722441566428,1.0916529,66525.0,66524.0,0.88656991]
[1722441566844,1.1040947,66525.0,66524.0,0.89651607]
[1722441567423,1.32495307,66525.0,66524.0,0.89651607]
[1722441567623,1.1040947,66525.0,66524.0,0.89651607]
[1722441567847,1.253576,66525.0,66524.0,0.89651607]
[1722441568614,1.2299861,66525.0,66524.0,0.89651607]
[1722441568819,1.45082475,66525.0,66524.0,0.89651607]
[1722441569027,1.2299861,66525.0,66524.0,0.89651607]
[1722441569399,1.45079727,66525.0,66524.0,0.89651607]
[1722441569528,1.2299861,66525.0,66524.0,0.89651607]
[1722441569735,1.45079223,66525.0,66524.0,0.89651607]
[1722441569933,1.45077824,66525.0,66524.0,0.89651607]
[1722441570571,1.08050349,66525.0,66524.0,0.88656991]
[1722441570770,1.068063,66525.0,66524.0,0.88656991]
[1722441570990,1.068063,66525.0,66524.0,0.89651955]
[1722441571214,1.08050261,66525.0,66524.0,0.89651955]
[1722441571588,1.09165474,66525.0,66524.0,0.89651955]
[1722441571809,1.068063,66525.0,66524.0,0.89651955]
[1722441572011,1.0805026,66525.0,66524.0,0.89651955]
[1722441572997,1.068063,66525.0,66524.0,0.89651955]
[1722441573220,1.08050245,66525.0,66524.0,0.89651955]
[1722441574072,1.22557408,66525.0,66524.0,0.89651955]
[1722441574580,1.3323657,66525.0,66524.0,0.89651955]
[1722441574780,1.3323657,66525.0,66524.0,0.88656991]
[1722441574781,1.3969657,66525.0,66524.0,0.88656991]
[1722441575121,1.3969657,66525.0,66524.0,0.89651955]
[1722441576181,1.38452625,66525.0,66524.0,0.89651955]
[1722441576410,1.39696497,66525.0,66524.0,0.89651955]
[1722441578555,1.7176997,66525.0,66524.0,0.89651955]
[1722441578959,1.7176997,66525.0,66524.0,0.88656991]
[1722441579386,1.7176997,66525.0,66524.0,0.89651955]
[1722441579589,1.70269432,66525.0,66524.0,0.89651955]
[1722441580084,1.73069432,66525.0,66524.0,0.89651955]
[1722441580290,1.66609432,66525.0,66524.0,0.89651955]
[1722441580546,1.66609432,66525.0,66524.0,0.88656991]
[1722441580949,1.66609432,66525.0,66524.0,0.89652399]
[1722441582790,1.44535804,66525.0,66524.0,0.89652399]
[1722441583038,1.66597333,66525.0,66524.0,0.89652399]
[1722441583868,1.44535804,66525.0,66524.0,0.89652399]
[1722441585338,1.66597333,66525.0,66524.0,0.89652399]
[1722441586061,1.44535452,66525.0,66524.0,0.89652399]
[1722441586265,1.66593592,66525.0,66524.0,0.89652399]
[1722441587353,0.28560531,66525.0,66524.0,0.89652399]
[1722441587556,0.20274062,66525.0,66524.0,0.89652399]
[1722441587731,0.02883,66525.0,66524.0,0.89652399]